bitfinex/quotes_BTCUSD_20241103
["timestamp","ask_amount","ask_price","bid_price","bid_amount"]
[1730653925169,0.02556928,68464.0,68463.0,0.081038]
[1730653925841,0.04856928,68464.0,68463.0,0.081038]
[1730653927213,0.044,68464.0,68463.0,0.081038]
[1730653927424,0.04856914,68464.0,68463.0,0.081038]
[1730653929612,0.04856914,68464.0,68463.0,0.227102]
[1730653929873,0.04856914,68464.0,68463.0,0.081038]
[1730653930314,0.04856914,68464.0,68463.0,0.227102]
[1730653931183,0.044,68464.0,68463.0,0.227102]
[1730653931409,0.04856909,68464.0,68463.0,0.227102]
[1730653932543,0.04856909,68464.0,68463.0,0.081038]
[1730653934505,0.04856907,68464.0,68463.0,0.081038]
[1730653935384,0.02556907,68464.0,68463.0,0.227102]
[1730653938563,0.02556907,68464.0,68463.0,0.23101914]
[1730653938835,0.02556907,68464.0,68463.0,0.27801914]
[1730653940001,0.02556835,68464.0,68463.0,0.28301914]
[1730653940272,0.021,68464.0,68463.0,0.28301914]
[1730653940488,0.000819,68466.0,68465.0,0.28787714]
[1730653940697,0.000819,68466.0,68465.0,0.43367418]
[1730653941595,0.000819,68466.0,68465.0,0.53367418]
[1730653942267,0.000819,68466.0,68465.0,0.53867418]
[1730653942519,0.001819,68466.0,68465.0,0.54967418]
[1730653942743,0.001819,68466.0,68465.0,0.54467418]
[1730653942959,0.001819,68466.0,68465.0,0.54967418]
[1730653943413,0.001819,68466.0,68465.0,0.54467418]
[1730653943838,0.001819,68466.0,68465.0,0.54967418]
[1730653944696,0.001819,68466.0,68465.0,0.54467418]
[1730653946055,0.001819,68466.0,68465.0,0.55867418]
[1730653946267,0.001819,68466.0,68465.0,0.54467418]
[1730653946705,0.001819,68466.0,68465.0,0.55867418]
[1730653946931,0.001819,68466.0,68465.0,0.54467418]
[1730653947397,0.001819,68466.0,68465.0,0.55867418]
[1730653947649,0.001819,68466.0,68465.0,0.40787714]
[1730653947889,0.000819,68466.0,68465.0,0.39687714]
[1730653948153,0.000819,68466.0,68465.0,0.40887714]
[1730653948604,0.000819,68466.0,68465.0,0.39687714]
[1730653948833,0.000819,68466.0,68465.0,0.40787714]
[1730653949340,0.000819,68466.0,68465.0,0.30787714]
[1730653949786,0.000819,68466.0,68465.0,0.26087714]
[1730653951520,0.000819,68466.0,68465.0,0.24987714]
[1730653951752,0.000819,68466.0,68465.0,0.26379815]
[1730653952221,0.000819,68466.0,68465.0,0.28879815]
[1730653952451,0.000819,68466.0,68465.0,0.28587714]
[1730653952698,0.000819,68466.0,68465.0,0.30387714]
[1730653952945,0.000819,68466.0,68465.0,0.28787714]
[1730653953188,0.000819,68466.0,68465.0,0.28987714]
[1730653953429,0.000819,68466.0,68465.0,0.34547714]
[1730653953646,0.000819,68466.0,68465.0,0.33847714]
[1730653953864,0.000819,68466.0,68465.0,0.35047714]
[1730653954260,0.000819,68466.0,68465.0,0.34647714]
[1730653954764,0.001819,68466.0,68465.0,0.35647714]
[1730653955197,0.000819,68466.0,68465.0,0.33447714]
[1730653955429,0.000819,68466.0,68465.0,0.35847714]
[1730653955430,0.001819,68466.0,68465.0,0.35847714]
[1730653955734,0.001819,68466.0,68465.0,0.34547714]
[1730653956186,0.001819,68466.0,68465.0,0.35847714]
[1730653956608,0.001819,68466.0,68465.0,0.60927418]
[1730653959097,0.001819,68466.0,68465.0,0.73377853]
[1730653959613,0.001819,68466.0,68465.0,0.73577853]
[1730653960329,0.001819,68466.0,68465.0,0.73877853]
[1730653960547,0.001819,68466.0,68465.0,0.74077853]
[1730653960990,0.001819,68466.0,68465.0,1.44077853]
[1730653961184,0.001819,68466.0,68465.0,1.43877853]
[1730653964744,0.001819,68466.0,68465.0,1.44077853]
[1730653966360,1e-06,68466.0,68465.0,1.44077853]
[1730653970174,1e-06,68466.0,68465.0,1.39647779]
[1730653971869,1e-06,68466.0,68465.0,1.44004866]
[1730653972093,1e-06,68466.0,68465.0,1.39647779]
[1730653972343,1e-06,68466.0,68465.0,1.44004866]
[1730653973245,1e-06,68466.0,68465.0,1.39647779]
[1730653974160,1e-06,68466.0,68465.0,1.44011377]
[1730653974422,1e-06,68466.0,68465.0,1.46193194]
[1730653974635,1e-06,68466.0,68465.0,1.39447779]
[1730653975385,1e-06,68466.0,68465.0,1.6210562]
[1730653975602,1e-06,68466.0,68465.0,1.55760205]
[1730653976040,1e-06,68466.0,68465.0,1.62307345]
[1730653976262,1e-06,68466.0,68465.0,1.64487425]
[1730653976956,1e-06,68466.0,68465.0,0.94487425]
[1730653977414,1e-06,68466.0,68465.0,0.85760205]
[1730653977641,1e-06,68466.0,68465.0,0.85924005]
[1730653977863,0.00082,68466.0,68465.0,0.72843644]
[1730653978086,0.00082,68466.0,68465.0,0.81579014]
[1730653978328,0.00082,68466.0,68465.0,0.83786898]
[1730653978837,0.00082,68466.0,68465.0,0.88586898]
[1730653979959,0.00082,68466.0,68465.0,1.58586898]
[1730653980406,0.00082,68466.0,68465.0,1.58386898]
[1730653980635,0.00082,68466.0,68465.0,1.42862207]
[1730653980853,0.00082,68466.0,68465.0,1.33286996]
[1730653981543,0.00082,68466.0,68465.0,1.33287022]
[1730653981756,0.00082,68466.0,68465.0,1.26731218]
[1730653981984,0.00082,68466.0,68465.0,1.33287022]
[1730653982908,0.00082,68466.0,68465.0,1.49421607]
[1730653983130,0.00082,68466.0,68465.0,1.49221607]
[1730653983354,0.00082,68466.0,68465.0,1.49421607]
[1730653983554,0.00082,68466.0,68465.0,1.42865803]
[1730653983812,0.00082,68466.0,68465.0,1.49222103]
[1730653984307,0.00082,68466.0,68465.0,1.42665803]
[1730653984514,0.00082,68466.0,68465.0,1.42865803]
[1730653985226,0.00082,68466.0,68465.0,1.49422685]
[1730653985459,0.00082,68466.0,68465.0,1.49222685]
[1730653985678,0.00082,68466.0,68465.0,1.49422685]
[1730653986404,0.00082,68466.0,68465.0,1.49222685]
[1730653986642,0.00082,68466.0,68465.0,1.49422685]
[1730653987568,0.00082,68466.0,68465.0,0.93061514]
[1730653988927,0.000819,68466.0,68465.0,0.91961514]
[1730653989157,0.000819,68466.0,68465.0,0.93061514]
[1730653989412,0.000819,68466.0,68465.0,0.23061514]
[1730653989630,0.000819,68466.0,68465.0,0.21961514]
[1730653989915,0.000819,68466.0,68465.0,0.19961514]
[1730653990134,0.000819,68466.0,68465.0,0.202698]
[1730653990322,0.000819,68466.0,68465.0,0.216698]
[1730653990549,0.124919,68466.0,68465.0,0.20461514]
[1730653990987,0.124919,68466.0,68465.0,0.21161514]
[1730653991226,0.124919,68466.0,68465.0,0.19961514]
[1730653991443,0.124919,68466.0,68465.0,0.20061514]
[1730653991659,0.124919,68466.0,68465.0,0.20461514]
[1730653992118,0.124919,68466.0,68465.0,0.20061514]
[1730653992345,0.125919,68466.0,68465.0,0.20061514]
[1730653992557,0.125919,68466.0,68465.0,0.20261514]
[1730653994592,0.001819,68466.0,68465.0,0.42265489]
[1730653994818,0.001819,68466.0,68465.0,0.32714327]
[1730653995286,0.001819,68466.0,68465.0,0.20761514]
[1730653995524,0.001819,68466.0,68465.0,0.21053591]
[1730653995757,0.001819,68466.0,68465.0,0.20761514]
[1730654003767,0.001819,68466.0,68465.0,0.20561514]
[1730654004206,0.001819,68466.0,68465.0,0.20761514]
[1730654005258,0.001819,68466.0,68465.0,0.20561514]
[1730654005448,0.001819,68466.0,68465.0,0.20761514]
[1730654008843,0.001819,68466.0,68465.0,0.20561514]
[1730654014505,0.001819,68466.0,68465.0,0.20761514]
[1730654018370,0.082919,68466.0,68465.0,0.199698]
[1730654018595,0.082919,68466.0,68465.0,0.20161514]
[1730654018819,0.000819,68466.0,68465.0,0.20861514]
[1730654019695,0.000819,68466.0,68465.0,0.20661514]
[1730654021359,0.000819,68466.0,68465.0,0.20161514]
[1730654022087,0.000819,68466.0,68465.0,0.20661514]
[1730654026201,0.000819,68466.0,68465.0,0.20161514]
[1730654026635,0.000819,68466.0,68465.0,0.20661514]
[1730654028427,0.000819,68466.0,68465.0,0.20161514]
[1730654028664,0.000819,68466.0,68465.0,0.20661514]
[1730654029142,0.000819,68466.0,68465.0,0.20861514]
[1730654030905,0.00538706,68466.0,68465.0,0.20861514]
[1730654032762,0.005387,68466.0,68465.0,0.20861514]
[1730654034902,0.005387,68466.0,68465.0,0.20661514]
[1730654036505,0.00538705,68466.0,68465.0,0.20661514]
[1730654037843,0.000819,68466.0,68465.0,0.20661514]
[1730654038041,0.000819,68466.0,68465.0,0.20861514]
[1730654038665,0.000819,68466.0,68465.0,0.20661514]
[1730654039143,0.000819,68466.0,68465.0,0.20861514]
[1730654040929,0.00538705,68466.0,68465.0,0.20861514]
[1730654041568,0.00538705,68466.0,68465.0,0.20161514]
[1730654041779,0.00538705,68466.0,68465.0,0.20661514]
[1730654042468,0.00538705,68466.0,68465.0,0.20161514]
[1730654042691,0.00538707,68466.0,68465.0,0.20361514]
[1730654042931,0.00538707,68466.0,68465.0,0.20861514]
[1730654043140,0.00538707,68466.0,68465.0,0.28581514]
[1730654044920,0.000819,68466.0,68465.0,0.28581514]
[1730654046537,0.000819,68466.0,68465.0,0.28381514]
[1730654047151,0.000819,68466.0,68465.0,0.28581514]
[1730654047400,0.000819,68466.0,68465.0,0.28481514]
[1730654047609,0.000819,68466.0,68465.0,0.28881514]
[1730654051817,0.005387,68466.0,68465.0,0.28881514]
[1730654055879,0.000819,68466.0,68465.0,0.20961514]
[1730654057387,0.000819,68466.0,68465.0,0.21161514]
[1730654057602,0.000819,68466.0,68465.0,0.20961514]
[1730654058859,0.000819,68466.0,68465.0,0.21161514]
[1730654060228,0.31852975,68477.0,68472.0,0.146044]
[1730654060598,0.146034,68477.0,68472.0,0.146044]
[1730654061365,0.04382165,68476.0,68472.0,0.146044]
[1730654061961,0.04382165,68476.0,68472.0,0.147044]
[1730654062439,0.00456793,68475.0,68474.0,0.15304]
[1730654062651,0.00456793,68475.0,68474.0,0.15495714]
[1730654062897,0.00456793,68475.0,68474.0,0.38497466]
[1730654063110,0.00456793,68475.0,68474.0,0.52735418]
[1730654063353,0.000818,68478.0,68477.0,0.15495114]
[1730654063572,0.000818,68478.0,68477.0,0.23917134]
[1730654063573,0.00538507,68478.0,68477.0,0.23917134]
[1730654064208,0.000818,68478.0,68477.0,0.23625114]
[1730654064992,0.00538511,68478.0,68477.0,0.23625114]
[1730654065202,0.00538512,68478.0,68477.0,0.23625114]
[1730654065420,0.000818,68478.0,68477.0,0.23625114]
[1730654065868,0.000818,68478.0,68477.0,0.23925114]
[1730654066325,0.000818,68478.0,68477.0,0.24425114]
[1730654066855,0.00538526,68478.0,68477.0,0.16095114]
[1730654068636,0.00538532,68478.0,68477.0,0.16095114]
[1730654070572,0.00538532,68478.0,68477.0,0.159034]
[1730654070816,0.00538532,68478.0,68477.0,0.240334]
[1730654071001,0.00538532,68478.0,68477.0,0.159034]
[1730654071292,0.00538532,68478.0,68477.0,0.161034]
[1730654071493,0.00538532,68478.0,68477.0,0.159034]
[1730654072531,0.00538532,68478.0,68477.0,0.154034]
[1730654072741,0.00538532,68478.0,68477.0,0.159034]
[1730654073770,0.00538532,68478.0,68477.0,0.154034]
[1730654074206,0.00538532,68478.0,68477.0,0.158034]
[1730654074422,0.00538532,68478.0,68477.0,0.151034]
[1730654074654,0.00538532,68478.0,68477.0,0.155034]
[1730654075501,0.000818,68478.0,68477.0,0.155034]
[1730654075728,0.00538539,68478.0,68477.0,0.009]
[1730654075951,0.00538539,68478.0,68477.0,0.006]
[1730654076171,0.00638539,68478.0,68477.0,0.006]
[1730654076794,0.00638539,68478.0,68477.0,0.005]
[1730654077935,0.00538539,68478.0,68477.0,0.005]
[1730654078827,0.00838539,68478.0,68477.0,0.005]
[1730654079303,0.00838539,68478.0,68473.0,0.00191714]
[1730654079304,0.00838539,68478.0,68473.0,0.005]
[1730654079516,0.00838539,68478.0,68470.0,0.00191714]
[1730654079517,0.17285,68478.0,68477.0,0.001636]
[1730654079729,0.17741764,68478.0,68477.0,0.001636]
[1730654080814,0.15441764,68478.0,68477.0,0.001636]
[1730654081250,0.15141764,68478.0,68477.0,0.001636]
[1730654081693,0.00538564,68478.0,68477.0,0.006636]
[1730654082420,0.00838564,68478.0,68477.0,0.001636]
[1730654083280,0.00838571,68478.0,68477.0,0.001636]
[1730654085258,0.15441771,68478.0,68477.0,0.001636]
[1730654086926,0.15441774,68478.0,68477.0,0.001636]
[1730654087377,0.15898548,68478.0,68477.0,0.001636]
[1730654087629,0.15441774,68478.0,68477.0,0.001636]
[1730654089219,0.00838574,68478.0,68477.0,0.001636]
[1730654090625,0.00838591,68478.0,68477.0,0.001636]
[1730654090848,0.15441791,68478.0,68477.0,0.001636]
[1730654092379,0.00838591,68478.0,68477.0,0.001636]
[1730654093445,0.05216338,68478.0,68477.0,0.001636]
[1730654093691,0.36699242,68478.0,68477.0,0.001636]
[1730654094350,0.32321505,68478.0,68477.0,0.001636]
[1730654094787,0.32629791,68478.0,68477.0,0.001636]
[1730654095005,0.53480333,68478.0,68477.0,0.001636]
[1730654095219,0.38897759,68478.0,68477.0,0.001636]
[1730654095428,0.39297759,68478.0,68477.0,0.002636]
[1730654095849,0.38897759,68478.0,68477.0,0.001636]
[1730654096300,0.53402518,68478.0,68477.0,0.002636]
[1730654096514,0.67985092,68478.0,68477.0,0.003636]
[1730654096749,0.83492451,68478.0,68477.0,0.003636]
[1730654098127,0.83492482,68478.0,68477.0,0.003636]
[1730654098559,0.8303565,68478.0,68477.0,0.003636]
[1730654098787,0.8303565,68478.0,68465.0,0.051638]
[1730654098788,0.29823986,68466.0,68465.0,0.051638]
[1730654099017,0.79721432,68466.0,68465.0,0.051638]
[1730654099233,0.75523022,68466.0,68465.0,0.051638]
[1730654099926,0.75523022,68466.0,68465.0,0.052638]
[1730654100366,0.83055883,68466.0,68465.0,0.052638]
[1730654100588,0.83055883,68466.0,68464.0,0.001638]
[1730654100589,0.14914286,68465.0,68464.0,0.001638]
[1730654100806,0.27214486,68464.0,68454.0,0.22003975]
[1730654101019,0.00308286,68459.0,68454.0,0.22003975]
[1730654101235,0.17216386,68455.0,68454.0,0.22003975]
[1730654101470,0.54454608,68455.0,68454.0,0.22003975]
[1730654101684,0.54454608,68455.0,68447.0,0.22003975]
[1730654101685,0.21726786,68453.0,68447.0,0.22003975]
[1730654101902,0.3630649,68453.0,68447.0,0.22003975]
[1730654102345,0.3630649,68453.0,68440.0,0.22003975]
[1730654102878,0.61349351,68453.0,68440.0,0.22003975]
[1730654103119,0.62749351,68453.0,68440.0,0.22003975]
[1730654103363,0.86031925,68453.0,68440.0,0.22003975]
[1730654103595,0.84631925,68453.0,68440.0,0.22003975]
[1730654103806,0.77099064,68453.0,68440.0,0.22003975]
[1730654104028,0.78499064,68453.0,68440.0,0.22003975]
[1730654104264,0.6251649,68453.0,68440.0,0.36615175]
[1730654104516,0.4500649,68453.0,68443.0,0.0786]
[1730654104756,0.073,68453.0,68452.0,0.147721]
[1730654105002,0.073,68453.0,68452.0,0.228321]
[1730654105262,0.087,68453.0,68452.0,0.229321]
[1730654105498,0.101,68453.0,68452.0,0.229321]
[1730654105730,0.087,68453.0,68452.0,0.31056675]
[1730654105950,0.073,68453.0,68452.0,0.31056675]
[1730654106166,0.086,68453.0,68452.0,0.31156675]
[1730654106373,0.096,68453.0,68452.0,0.31156675]
[1730654106631,0.073,68453.0,68452.0,0.31056675]
[1730654106841,0.075,68453.0,68452.0,0.35706675]
[1730654107080,0.075,68453.0,68452.0,0.50286379]
[1730654107320,0.073,68453.0,68452.0,0.53753518]
[1730654107565,0.074,68453.0,68452.0,0.53753518]
[1730654107779,0.074,68453.0,68452.0,0.54472106]
[1730654107995,0.079,68453.0,68452.0,0.54472106]
[1730654108416,0.074,68453.0,68452.0,0.54472106]
[1730654108854,0.074,68453.0,68452.0,0.55272106]
[1730654109069,0.075,68453.0,68452.0,0.55872106]
[1730654109307,0.074,68453.0,68452.0,0.55272106]
[1730654110195,0.075,68453.0,68452.0,0.55872106]
[1730654113126,0.075,68453.0,68452.0,0.61718006]
[1730654114019,0.075,68453.0,68452.0,0.61026292]
[1730654114273,0.075,68453.0,68452.0,0.35419714]
[1730654114742,0.075,68453.0,68452.0,0.35919714]
[1730654114966,0.075,68453.0,68452.0,0.35419714]
[1730654115189,0.075,68453.0,68452.0,0.35919714]
[1730654115853,0.075,68453.0,68452.0,0.45419714]
[1730654116296,0.075,68453.0,68452.0,0.24923814]
[1730654117859,0.075,68453.0,68452.0,0.24723814]
[1730654118079,0.075,68453.0,68452.0,0.24923814]
[1730654119451,0.075,68453.0,68452.0,0.16863814]
[1730654119677,0.075,68453.0,68452.0,0.16363814]
[1730654119907,0.075,68453.0,68452.0,0.166721]
[1730654120126,0.075,68453.0,68452.0,0.16863814]
[1730654120576,0.075,68453.0,68452.0,0.166721]
[1730654121065,0.075,68453.0,68452.0,0.015634]
[1730654121734,0.0971897,68453.0,68452.0,0.015634]
[1730654121953,0.075,68453.0,68452.0,0.161721]
[1730654123509,0.075,68453.0,68452.0,0.16863814]
[1730654124164,0.07956923,68453.0,68452.0,0.16863814]
[1730654124591,0.075,68453.0,68452.0,0.16363814]
[1730654124818,0.07956926,68453.0,68452.0,0.015634]
[1730654125034,0.24830119,68453.0,68452.0,0.015634]
[1730654125258,0.22565426,68453.0,68452.0,0.015634]
[1730654125747,0.24865426,68453.0,68452.0,0.015634]
[1730654125962,0.38788204,68453.0,68452.0,0.001634]
[1730654126183,0.49804225,68453.0,68452.0,0.001634]
[1730654126897,0.49904225,68453.0,68452.0,0.007634]
[1730654127320,0.35395725,68453.0,68452.0,0.014634]
[1730654127779,0.35295725,68453.0,68452.0,0.007634]
[1730654128005,0.35295725,68453.0,68452.0,0.008634]
[1730654128006,0.36695725,68453.0,68452.0,0.008634]
[1730654128236,0.36595725,68453.0,68452.0,0.002634]
[1730654128826,0.24636646,68453.0,68452.0,0.001634]
[1730654129063,0.26736646,68453.0,68452.0,0.002634]
[1730654129305,0.25336646,68453.0,68452.0,0.002634]
[1730654129785,0.26536646,68453.0,68452.0,0.002634]
[1730654130512,0.25836646,68453.0,68452.0,0.001634]
[1730654130752,0.27136646,68453.0,68452.0,0.002634]
[1730654131436,0.34271769,68453.0,68452.0,0.002634]
[1730654132600,0.27136646,68453.0,68452.0,0.002634]
[1730654136554,0.27136646,68453.0,68452.0,0.148721]
[1730654136784,0.27136646,68453.0,68452.0,0.002634]
[1730654137018,0.121,68453.0,68452.0,0.002634]
[1730654137269,0.1025694,68453.0,68452.0,0.153721]
[1730654137734,0.1025694,68453.0,68452.0,0.15763814]
[1730654137966,0.1025694,68453.0,68452.0,0.20543814]
[1730654138194,0.098,68453.0,68452.0,0.20543814]
[1730654138888,0.10256895,68453.0,68452.0,0.20543814]
[1730654139585,0.09056895,68453.0,68452.0,0.20543814]
[1730654139822,0.09056895,68453.0,68452.0,0.20343814]
[1730654140046,0.07756895,68453.0,68452.0,0.20243814]
[1730654140267,0.07956895,68453.0,68452.0,0.21343814]
[1730654140516,0.075,68453.0,68452.0,0.21343814]
[1730654140736,0.07956894,68453.0,68452.0,0.21343814]
[1730654142075,0.07956894,68453.0,68452.0,0.21543814]
[1730654144356,0.07956899,68453.0,68452.0,0.21543814]
[1730654147103,0.07956899,68453.0,68452.0,0.21343814]
[1730654147320,0.07956899,68453.0,68452.0,0.21543814]
[1730654147839,0.075,68453.0,68452.0,0.21543814]
[1730654150855,0.075,68453.0,68452.0,0.21343814]
[1730654151304,0.075,68453.0,68452.0,0.21543814]
[1730654151566,0.075,68453.0,68452.0,0.16763814]
[1730654155179,0.075,68453.0,68452.0,0.16563814]
[1730654156543,0.075,68453.0,68452.0,0.16763814]
[1730654159245,0.07956916,68453.0,68452.0,0.16763814]
[1730654160093,0.075,68453.0,68452.0,0.16763814]
[1730654160314,0.075,68453.0,68452.0,0.163721]
[1730654160558,0.0825819,68453.0,68452.0,0.012634]
[1730654161722,0.0825819,68453.0,68452.0,0.158721]
[1730654161952,0.22873649,68453.0,68452.0,0.012634]
[1730654162199,0.37482149,68453.0,68452.0,0.012634]
[1730654162432,0.098,68453.0,68452.0,0.158721]
[1730654163452,0.075,68453.0,68452.0,0.24123814]
[1730654163681,0.075,68453.0,68452.0,0.28933814]
[1730654163682,0.074,68453.0,68452.0,0.28933814]
[1730654163911,0.073,68453.0,68452.0,0.28433814]
[1730654164143,0.07756892,68453.0,68452.0,0.28833814]
[1730654164610,0.07856892,68453.0,68452.0,0.29333814]
[1730654164844,0.07856892,68453.0,68452.0,0.54913518]
[1730654165083,0.073,68453.0,68452.0,0.54413518]
[1730654165546,0.073,68453.0,68452.0,0.54013518]
[1730654165777,0.073,68453.0,68452.0,0.54113518]
[1730654166002,0.074,68453.0,68452.0,0.54013518]
[1730654166479,0.073,68453.0,68452.0,0.58371728]
[1730654166923,0.06934758,68453.0,68452.0,0.58971728]
[1730654167149,0.001,68453.0,68452.0,0.58971728]
[1730654167608,0.002,68453.0,68452.0,0.55713518]
[1730654168525,0.0704,68453.0,68452.0,0.55713518]
[1730654168987,0.0704,68453.0,68452.0,0.56433118]
[1730654169690,0.0704,68453.0,68452.0,0.41433118]
[1730654169915,0.0704,68453.0,68452.0,0.56041818]
[1730654170370,0.0704,68453.0,68452.0,0.56205418]
[1730654175532,0.0704,68453.0,68452.0,0.57058697]
[1730654175768,0.0704,68453.0,68452.0,0.57911976]
[1730654176961,0.041183,68453.0,68452.0,0.58111976]
[1730654177180,0.000819,68458.0,68452.0,0.58111976]
[1730654177181,1e-06,68458.0,68457.0,0.39041514]
[1730654177425,1e-06,68458.0,68457.0,0.65778057]
[1730654177665,1e-06,68458.0,68457.0,0.67420885]
[1730654178601,1e-06,68458.0,68457.0,0.68520885]
[1730654178828,1e-06,68458.0,68457.0,0.60910223]
[1730654179058,1e-06,68458.0,68457.0,0.62010223]
[1730654179280,1e-06,68458.0,68457.0,0.62010237]
[1730654179503,1e-06,68458.0,68457.0,0.57664046]
[1730654179769,1e-06,68458.0,68457.0,0.62010237]
[1730654180216,1e-06,68458.0,68457.0,1.32010237]
[1730654180441,1e-06,68458.0,68457.0,1.27664046]
[1730654181160,1e-06,68458.0,68457.0,1.32010237]
[1730654181389,1e-06,68458.0,68457.0,1.27664046]
[1730654184409,0.22003975,68477.0,68476.0,0.26267414]
[1730654184636,0.22003975,68477.0,68476.0,0.48987118]
[1730654184876,0.000818,68478.0,68477.0,0.26467214]
[1730654185102,0.000818,68478.0,68477.0,0.52803757]
[1730654185555,0.000818,68478.0,68477.0,0.65853757]
[1730654186070,0.000818,68478.0,68477.0,0.65653757]
[1730654186265,0.000818,68478.0,68477.0,0.66361605]
[1730654187138,0.000818,68478.0,68477.0,0.67261605]
[1730654187758,0.000818,68478.0,68477.0,0.67961605]
[1730654189874,0.000818,68478.0,68477.0,0.66361605]
[1730654190125,0.000818,68478.0,68477.0,0.67761605]
[1730654190783,0.000818,68478.0,68477.0,0.69161605]
[1730654190992,0.000818,68478.0,68477.0,0.69361605]
[1730654192719,0.000818,68478.0,68477.0,0.69161605]
[1730654195930,0.000818,68478.0,68477.0,0.69945905]
[1730654196370,0.000818,68478.0,68477.0,0.69745905]
[1730654200289,0.000818,68478.0,68477.0,1.39745905]
[1730654203958,0.000818,68478.0,68477.0,0.65035905]
[1730654205410,0.000818,68478.0,68477.0,1.35035905]
[1730654209495,0.000818,68478.0,68477.0,1.30606511]
[1730654212250,0.000818,68478.0,68477.0,1.27606511]
[1730654217372,0.000818,68478.0,68477.0,0.57606511]
[1730654218894,0.000818,68478.0,68477.0,0.49466511]
[1730654222272,0.000818,68478.0,68477.0,0.48966511]
[1730654222524,0.000818,68478.0,68477.0,0.5381323]
[1730654222747,0.000818,68478.0,68477.0,0.49466511]
[1730654223414,0.000818,68478.0,68477.0,0.5381323]
[1730654223634,0.000818,68478.0,68477.0,1.2381323]
[1730654223865,0.000818,68478.0,68477.0,1.19666511]
[1730654224116,0.000818,68478.0,68477.0,1.31946511]
[1730654224658,0.000818,68478.0,68477.0,1.38266589]
[1730654224900,0.000818,68478.0,68477.0,1.31746511]
[1730654225127,0.000818,68478.0,68477.0,1.38279336]
[1730654225584,0.000818,68478.0,68477.0,1.54358901]
[1730654225805,0.000818,68478.0,68477.0,1.42078901]
[1730654226243,0.000818,68478.0,68477.0,1.03392187]
[1730654226470,0.047818,68478.0,68477.0,0.174034]
[1730654226714,0.129518,68478.0,68477.0,0.174034]
[1730654226934,0.1431716,68478.0,68477.0,0.174034]
[1730654227602,0.1431716,68478.0,68477.0,0.160034]
[1730654227838,0.134518,68478.0,68477.0,0.174034]
[1730654228367,0.134518,68478.0,68477.0,0.160034]
[1730654228579,0.134518,68478.0,68477.0,0.152034]
[1730654228798,0.134518,68478.0,68477.0,0.160034]
[1730654229246,0.129518,68478.0,68477.0,0.151034]
[1730654229465,0.129518,68478.0,68477.0,0.146034]
[1730654229687,0.129518,68478.0,68477.0,0.151034]
[1730654229936,0.047818,68478.0,68477.0,0.151034]
[1730654230151,0.000818,68478.0,68477.0,0.146034]
[1730654230799,0.000818,68478.0,68477.0,0.150034]
[1730654231249,0.000818,68478.0,68477.0,0.146034]
[1730654231465,0.000818,68478.0,68477.0,0.157034]
[1730654231947,0.000818,68478.0,68477.0,0.156034]
[1730654232386,0.000818,68478.0,68477.0,0.164034]
[1730654233054,0.052818,68478.0,68477.0,0.164034]
[1730654233913,0.134518,68478.0,68477.0,0.164034]
[1730654234406,0.1481716,68478.0,68477.0,0.164034]
[1730654234830,0.134518,68478.0,68477.0,0.164034]
[1730654237658,0.134518,68478.0,68477.0,0.16567]
[1730654240096,0.084518,68478.0,68477.0,0.16567]
[1730654242502,0.0012,68482.0,68477.0,0.16567]
[1730654242503,0.0798,68482.0,68479.0,0.14603]
[1730654242753,0.023,68481.0,68479.0,0.14603]
[1730654244138,0.023,68481.0,68479.0,0.15403]
[1730654244366,0.023,68481.0,68479.0,0.16003]
[1730654247048,0.023,68481.0,68479.0,0.014]
[1730654247049,0.0160098,68480.0,68479.0,0.014]
[1730654247307,0.000818,68480.0,68479.0,0.01393232]
[1730654248195,0.56705453,68480.0,68479.0,0.01393232]
[1730654248650,0.61078766,68480.0,68479.0,0.01393232]
[1730654249296,0.61078766,68480.0,68479.0,0.00793232]
[1730654249517,0.56705453,68480.0,68479.0,0.00793232]
[1730654249741,0.174032,68478.0,68477.0,0.001636]
[1730654249988,0.49546217,68478.0,68477.0,0.001636]
[1730654250218,0.51732874,68478.0,68477.0,0.001636]
[1730654250432,0.45172904,68478.0,68477.0,0.001636]
[1730654250661,0.59755478,68478.0,68477.0,0.001636]
[1730654250884,0.66313503,68478.0,68477.0,0.001636]
[1730654251400,0.75890166,68478.0,68477.0,0.002636]
[1730654251614,0.6630996,68478.0,68477.0,0.002636]
[1730654251831,0.6630994,68478.0,68477.0,0.001636]
[1730654252262,0.6630994,68478.0,68477.0,0.002636]
[1730654252948,0.84621346,68478.0,68477.0,0.002636]
[1730654253172,0.91357954,68478.0,68477.0,0.002636]
[1730654253389,0.8043385,68478.0,68477.0,0.003636]
[1730654253618,0.8063385,68478.0,68477.0,0.002636]
[1730654254050,0.8063385,68478.0,68477.0,0.003636]
[1730654254267,0.8063385,68478.0,68462.0,0.22003975]
[1730654254268,0.169064,68463.0,68462.0,0.22003975]
[1730654254493,0.31486104,68463.0,68462.0,0.22003975]
[1730654254968,0.146072,68459.0,68458.0,0.001636]
[1730654255238,0.169072,68459.0,68458.0,0.001636]
[1730654255447,0.297672,68459.0,68458.0,0.001636]
[1730654256103,0.58595604,68459.0,68458.0,0.001636]
[1730654256674,0.169113,68440.0,68439.0,0.24291066]
[1730654256908,0.31491004,68440.0,68439.0,0.22003975]
[1730654257368,0.146123,68436.0,68430.0,0.146133]
[1730654257589,0.023,68435.0,68434.0,0.22003975]
[1730654257823,0.023,68435.0,68432.0,0.14613]
[1730654258069,0.43802504,68440.0,68426.0,0.22003975]
[1730654258070,0.151104,68445.0,68440.0,0.146112]
[1730654258309,0.151104,68445.0,68439.0,0.001]
[1730654258310,0.023,68443.0,68439.0,0.001]
[1730654258547,0.023,68443.0,68431.0,0.0791]
[1730654258548,0.169108,68443.0,68438.0,0.146116]
[1730654258806,0.11710388,68442.0,68439.0,0.146114]
[1730654259051,0.023,68441.0,68439.0,0.146114]
[1730654259712,0.005,68442.0,68439.0,0.146114]
[1730654259955,0.023,68441.0,68439.0,0.146114]
[1730654260186,0.005,68442.0,68439.0,0.146114]
[1730654260399,0.005,68442.0,68437.0,0.146118]
[1730654260642,0.005,68442.0,68439.0,0.001]
[1730654260858,0.005,68442.0,68438.0,0.146117]